[Event "GER-ch Blitz 2019"]
[Site "Magdeburg"]
[Date "2019.05.25"]
[Round "27.5"]
[White "Carow, Johannes"]
[Black "Kopylov, Daniel"]
[Result "1-0"]
[ECO "D35"]
[WhiteElo "2445"]
[BlackElo "2263"]
[Annotator "NA"]
[PlyCount "45"]
[EventDate "2019.05.25"]
[EventType "tourn"]
[EventCountry "GER"]
[Tiebreak "Number of wins+Number of black wins"]
[SourceTitle "playchess.com"]
[Source "ChessBase"]
[SourceQuality "1"]
[TimeControl "180+2"]

1. d4 {[%emt 0:00:00]} d5 {[%emt 0:00:01]} 2. c4 {[%emt 0:00:01]} e6 {[%emt 0:
00:01]} 3. Nc3 {[%emt 0:00:01]} Nf6 {[%emt 0:00:01]} 4. cxd5 {[%emt 0:00:01]}
exd5 {[%emt 0:00:02]} 5. Bg5 {[%emt 0:00:01]} c6 {[%emt 0:00:01]} 6. e3 {
[%emt 0:00:01]} Be7 {[%emt 0:00:02]} 7. Bd3 {[%emt 0:00:03]} Bg4 {[%emt 0:00:
20]} 8. Nge2 {[%emt 0:00:13]} O-O {[%emt 0:00:05]} 9. Qc2 {[%emt 0:00:04]} g6 {
[%emt 0:00:18]} 10. Nf4 {[%emt 0:00:18]} Ne8 {[%emt 0:00:50]} 11. Bh6 {[%emt 0:
00:15]} Ng7 {[%emt 0:00:08]} 12. h3 {[%emt 0:00:12]} Be6 {[%emt 0:00:04]} 13.
O-O-O {[%emt 0:00:20]} b5 {[%emt 0:00:04]} 14. Kb1 {[%emt 0:00:05]} a5 {
[%emt 0:00:18]} 15. h4 {[%emt 0:00:03]} Bxh4 {[%emt 0:00:13]} 16. Rh2 {[%emt 0:
00:23]} Re8 {[%emt 0:00:32]} 17. Bxg7 {[%emt 0:00:25]} Kxg7 {[%emt 0:00:01]}
18. Rdh1 {[%emt 0:00:02]} Bf6 {[%emt 0:00:25]} 19. Rxh7+ {[%emt 0:00:05]} Kg8 {
[%emt 0:00:00]} 20. Bxg6 {[%emt 0:00:20]} fxg6 {[%emt 0:00:04]} 21. Qxg6+ Kf8
22. Nxe6+ {[%emt 0:00:03]} Rxe6 {[%emt 0:00:02]} 23. Qf7# {[%emt 0:00:01]} 1-0

[Event "GER-ch Blitz 2019"]
[Site "Magdeburg"]
[Date "2019.05.25"]
[Round "27.6"]
[White "Zelbel, Patrick"]
[Black "Schneider, Ilja"]
[Result "0-1"]
[ECO "B00"]
[WhiteElo "2439"]
[BlackElo "2494"]
[Annotator "ChessBase"]
[PlyCount "76"]
[EventDate "2019.05.25"]
[EventType "tourn"]
[EventCountry "GER"]
[Tiebreak "Number of wins+Number of black wins"]
[SourceTitle "playchess.com"]
[Source "ChessBase"]
[SourceQuality "1"]
[TimeControl "180+2"]

1. e4 {[%emt 0:00:00]} Nc6 {[%emt 0:00:00]} 2. Nc3 {[%emt 0:00:00]} Nf6 {
[%emt 0:00:00]} 3. Nf3 {[%emt 0:00:03]} d5 {[%emt 0:00:00]} 4. exd5 {[%emt 0:
00:04]} Nxd5 {[%emt 0:00:01]} 5. Nxd5 {[%emt 0:00:01]} Qxd5 {[%emt 0:00:02]} 6.
d4 {[%emt 0:00:30]} e5 {[%emt 0:00:01]} 7. Nxe5 {[%emt 0:00:04]} Nxe5 {[%emt 0:
00:07]} 8. dxe5 {[%emt 0:00:02]} Qxe5+ {[%emt 0:00:06]} 9. Qe2 {[%emt 0:00:02]}
Bd6 {[%emt 0:00:04]} 10. Bd2 {[%emt 0:00:09]} Bf5 {[%emt 0:00:09]} 11. O-O-O {
[%emt 0:00:16]} O-O-O {[%emt 0:00:05]} 12. Qxe5 {[%emt 0:00:04]} Bxe5 {[%emt 0:
00:01]} 13. Be2 {[%emt 0:00:07]} Rhe8 {[%emt 0:00:09]} 14. Be3 {[%emt 0:00:03]}
Be4 {[%emt 0:00:08]} 15. Rxd8+ {[%emt 0:00:10]} Rxd8 {[%emt 0:00:03]} 16. f3 {
[%emt 0:00:02]} Bd5 {[%emt 0:00:02]} 17. a3 {[%emt 0:00:29]} Bxb2+ {[%emt 0:00:
13]} 18. Kxb2 {[%emt 0:00:04]} Re8 {[%emt 0:00:01]} 19. Bxa7 {[%emt 0:00:26]}
Rxe2 {[%emt 0:00:02]} 20. Rd1 {[%emt 0:00:24]} Bc6 {[%emt 0:00:01]} 21. Bd4 {
[%emt 0:00:08]} Rxg2 {[%emt 0:00:01]} 22. Rd3 {[%emt 0:00:15]} f6 {[%emt 0:00:
09]} 23. h4 {[%emt 0:00:09]} Rg3 {[%emt 0:00:06]} 24. f4 {[%emt 0:00:05]} Rg4 {
[%emt 0:00:01]} 25. Bf2 {[%emt 0:00:04]} Rxf4 26. Bg3 {[%emt 0:00:01]} Rf3 {
[%emt 0:00:09]} 27. Kc3 {[%emt 0:00:01]} Rxd3+ 28. cxd3 {[%emt 0:00:01]} Bb5 {
[%emt 0:00:10]} 29. d4 {[%emt 0:00:02]} Kd7 {[%emt 0:00:01]} 30. Kd2 {[%emt 0:
00:01]} c6 {[%emt 0:00:03]} 31. Ke3 {[%emt 0:00:01]} Ke6 {[%emt 0:00:01]} 32.
Bc7 {[%emt 0:00:03]} Kf5 {[%emt 0:00:04]} 33. Kf3 {[%emt 0:00:01]} Ba4 {
[%emt 0:00:06]} 34. Bb6 {[%emt 0:00:02]} Bd1+ {[%emt 0:00:01]} 35. Kg3 {
[%emt 0:00:01]} g5 {[%emt 0:00:13]} 36. hxg5 {[%emt 0:00:02]} fxg5 {[%emt 0:00:
01]} 37. Bc7 {[%emt 0:00:02]} h5 {[%emt 0:00:01]} 38. Bd8 {[%emt 0:00:03]} h4+
{[%emt 0:00:01]} 0-1

[Event "GER-ch Blitz 2019"]
[Site "Magdeburg"]
[Date "2019.05.25"]
[Round "27.7"]
[White "Krause, Benedict"]
[Black "Schulze, Marc"]
[Result "1/2-1/2"]
[ECO "B37"]
[WhiteElo "2434"]
[BlackElo "2220"]
[Annotator "NA"]
[PlyCount "81"]
[EventDate "2019.05.25"]
[EventType "tourn"]
[EventCountry "GER"]
[Tiebreak "Number of wins+Number of black wins"]
[SourceTitle "playchess.com"]
[Source "ChessBase"]
[SourceQuality "1"]
[TimeControl "180+2"]

1. e4 {[%emt 0:00:00]} c5 {[%emt 0:00:00]} 2. Nf3 g6 3. d4 {[%emt 0:00:01]}
cxd4 {[%emt 0:00:00]} 4. Nxd4 {[%emt 0:00:01]} Bg7 {[%emt 0:00:01]} 5. c4 {
[%emt 0:00:01]} Nc6 {[%emt 0:00:00]} 6. Nc2 {[%emt 0:00:00]} Nf6 {[%emt 0:00:
01]} 7. Nc3 {[%emt 0:00:01]} O-O {[%emt 0:00:01]} 8. Be2 {[%emt 0:00:01]} d6 {
[%emt 0:00:01]} 9. O-O {[%emt 0:00:02]} b6 {[%emt 0:00:01]} 10. Be3 {[%emt 0:
00:03]} e6 {[%emt 0:00:01]} 11. Qd2 {[%emt 0:00:01]} Qe7 {[%emt 0:00:01]} 12.
Rfd1 {[%emt 0:00:06]} Rd8 {[%emt 0:00:01]} 13. Rac1 {[%emt 0:00:01]} Bb7 {
[%emt 0:00:01]} 14. Bh6 {[%emt 0:00:11]} Rac8 {[%emt 0:00:19]} 15. Bxg7 {
[%emt 0:00:02]} Kxg7 {[%emt 0:00:01]} 16. b3 {[%emt 0:00:03]} Rd7 {[%emt 0:00:
28]} 17. Nd4 {[%emt 0:00:20]} Rcd8 {[%emt 0:00:13]} 18. Nxc6 {[%emt 0:00:08]}
Bxc6 {[%emt 0:00:01]} 19. Qd4 {[%emt 0:00:02]} Kg8 {[%emt 0:00:02]} 20. Bf3 {
[%emt 0:00:06]} Ne8 {[%emt 0:00:29]} 21. Qe3 {[%emt 0:00:08]} Nc7 {[%emt 0:00:
13]} 22. Rd2 {[%emt 0:00:03]} Ba8 {[%emt 0:00:15]} 23. Rcd1 {[%emt 0:00:01]}
Ne8 {[%emt 0:00:13]} 24. g3 {[%emt 0:00:14]} h5 {[%emt 0:00:05]} 25. h4 {
[%emt 0:00:01]} Kg7 {[%emt 0:00:02]} 26. Bg2 {[%emt 0:00:14]} Nf6 {[%emt 0:00:
05]} 27. Bf3 {[%emt 0:00:53]} Ne8 {[%emt 0:00:04]} 28. Kg2 {[%emt 0:00:05]} Bb7
{[%emt 0:00:04]} 29. Qd4+ {[%emt 0:00:14]} Qf6 {[%emt 0:00:06]} 30. Qxf6+ {
[%emt 0:00:09]} Kxf6 {[%emt 0:00:01]} 31. Nb5 {[%emt 0:00:10]} Ba8 {[%emt 0:00:
18]} 32. Kg1 {[%emt 0:00:09]} Ke7 {[%emt 0:00:01]} 33. Bg2 {[%emt 0:00:01]} Bc6
{[%emt 0:00:14]} 34. Nc3 {[%emt 0:00:03]} Ba8 {[%emt 0:00:02]} 35. f4 {[%emt 0:
00:03]} Nf6 {[%emt 0:00:05]} 36. Bf3 {[%emt 0:00:01]} Ne8 {[%emt 0:00:03]} 37.
Kf2 {[%emt 0:00:02]} Bb7 {[%emt 0:00:01]} 38. Ke3 {[%emt 0:00:01]} Bc6 {
[%emt 0:00:03]} 39. Ne2 {[%emt 0:00:15]} Nc7 {[%emt 0:00:05]} 40. Nd4 {[%emt 0:
00:04]} Ba8 {[%emt 0:00:05]} 41. Ne2 1/2-1/2

[Event "GER-ch Blitz 2019"]
[Site "Magdeburg"]
[Date "2019.05.25"]
[Round "27.8"]
[White "Svane, Frederik"]
[Black "Hebbinghaus, Holger"]
[Result "1-0"]
[ECO "B03"]
[WhiteElo "2342"]
[BlackElo "2310"]
[Annotator "NA"]
[PlyCount "56"]
[EventDate "2019.05.25"]
[EventType "tourn"]
[EventCountry "GER"]
[Tiebreak "Number of wins+Number of black wins"]
[SourceTitle "playchess.com"]
[Source "ChessBase"]
[SourceQuality "1"]
[TimeControl "180+2"]

1. e4 {[%emt 0:01:04]} Nf6 {[%emt 0:00:00]} 2. e5 Nd5 3. d4 {[%emt 0:00:03]}
Nb6 {[%emt 0:00:00]} 4. Nf3 {[%emt 0:00:02]} d5 {[%emt 0:00:00]} 5. Be2 {
[%emt 0:00:04]} Bg4 {[%emt 0:00:02]} 6. O-O {[%emt 0:00:02]} e6 {[%emt 0:00:01]
} 7. a4 {[%emt 0:00:10]} a5 {[%emt 0:00:01]} 8. b3 {[%emt 0:00:01]} c5 {
[%emt 0:00:04]} 9. Ba3 {[%emt 0:00:03]} Nc6 {[%emt 0:00:41]} 10. Bxc5 {[%emt 0:
00:10]} Bxc5 {[%emt 0:00:01]} 11. dxc5 {[%emt 0:00:02]} Nd7 {[%emt 0:00:01]}
12. Nc3 {[%emt 0:00:02]} Bxf3 {[%emt 0:00:11]} 13. Bxf3 {[%emt 0:00:02]} Ncxe5
{[%emt 0:00:06]} 14. Nb5 {[%emt 0:00:26]} O-O {[%emt 0:00:23]} 15. Qd4 {
[%emt 0:00:08]} Nxf3+ 16. gxf3 {[%emt 0:00:02]} Qc8 {[%emt 0:00:50]} 17. c4 {
[%emt 0:00:09]} dxc4 {[%emt 0:00:14]} 18. Qxc4 {[%emt 0:00:03]} Qxc5 {[%emt 0:
00:06]} 19. Rac1 {[%emt 0:00:06]} Rac8 {[%emt 0:00:08]} 20. Qxc5 {[%emt 0:00:
11]} Rxc5 {[%emt 0:00:04]} 21. Rcd1 {[%emt 0:00:08]} Ne5 {[%emt 0:00:11]} 22.
f4 {[%emt 0:00:02]} Ng6 {[%emt 0:00:02]} 23. Rd7 {[%emt 0:00:07]} Nxf4 {
[%emt 0:00:18]} 24. Rxb7 {[%emt 0:00:01]} Rg5+ {[%emt 0:00:05]} 25. Kh1 {
[%emt 0:00:02]} Rd8 {[%emt 0:00:03]} 26. b4 {[%emt 0:00:25]} Nh3 {[%emt 0:00:
02]} 27. Nc3 {[%emt 0:00:15]} h5 {[%emt 0:00:13]} 28. bxa5 {[%emt 0:00:02]}
Rxa5 1-0

[Event "GER-ch Blitz 2019"]
[Site "Magdeburg"]
[Date "2019.05.25"]
[Round "27.9"]
[White "Barzen, Pascal"]
[Black "Heidrich, Manfred"]
[Result "1-0"]
[ECO "B24"]
[WhiteElo "2292"]
[BlackElo "2351"]
[Annotator "NA"]
[PlyCount "47"]
[EventDate "2019.05.25"]
[EventType "tourn"]
[EventCountry "GER"]
[Tiebreak "Number of wins+Number of black wins"]
[SourceTitle "playchess.com"]
[Source "ChessBase"]
[SourceQuality "1"]
[TimeControl "180+2"]

1. e4 {[%emt 0:00:00]} c5 {[%emt 0:00:00]} 2. Nc3 {[%emt 0:00:00]} Nc6 {
[%emt 0:00:00]} 3. g3 {[%emt 0:00:00]} g6 {[%emt 0:00:01]} 4. Bg2 {[%emt 0:00:
00]} Bg7 {[%emt 0:00:01]} 5. d3 {[%emt 0:00:01]} e6 {[%emt 0:00:03]} 6. Be3 {
[%emt 0:00:01]} Nd4 {[%emt 0:00:03]} 7. f4 {[%emt 0:00:01]} Ne7 {[%emt 0:00:02]
} 8. Nf3 {[%emt 0:00:00]} Nec6 {[%emt 0:00:01]} 9. O-O {[%emt 0:00:03]} O-O {
[%emt 0:00:03]} 10. e5 {[%emt 0:00:10]} f6 {[%emt 0:00:05]} 11. exf6 {[%emt 0:
00:03]} Bxf6 {[%emt 0:00:01]} 12. Ne4 {[%emt 0:00:05]} d6 {[%emt 0:00:05]} 13.
Nxf6+ {[%emt 0:00:03]} Qxf6 {[%emt 0:00:01]} 14. c3 {[%emt 0:00:01]} Nf5 {
[%emt 0:00:02]} 15. Bf2 {[%emt 0:00:00]} Bd7 {[%emt 0:00:03]} 16. Qd2 {[%emt 0:
00:12]} Rab8 {[%emt 0:00:06]} 17. Rae1 {[%emt 0:00:01]} Rfe8 {[%emt 0:00:02]}
18. g4 {[%emt 0:00:02]} Nfe7 {[%emt 0:00:08]} 19. Bh4 {[%emt 0:00:05]} Qg7 {
[%emt 0:00:00]} 20. Ng5 {[%emt 0:00:16]} e5 {[%emt 0:00:21]} 21. fxe5 {[%emt 0:
00:12]} Nxe5 {[%emt 0:00:13]} 22. d4 {[%emt 0:00:06]} h6 {[%emt 0:00:17]} 23.
Ne4 {[%emt 0:00:26]} cxd4 {[%emt 0:00:25]} 24. Bf6 {[%emt 0:00:14]} 1-0

[Event "GER-ch Blitz 2019"]
[Site "Magdeburg"]
[Date "2019.05.25"]
[Round "27.10"]
[White "Kirchner, Thomas"]
[Black "Heistermann, Till"]
[Result "1-0"]
[ECO "B00"]
[WhiteElo "2311"]
[BlackElo "2181"]
[Annotator "NA"]
[PlyCount "90"]
[EventDate "2019.05.25"]
[EventType "tourn"]
[EventCountry "GER"]
[Tiebreak "Number of wins+Number of black wins"]
[SourceTitle "playchess.com"]
[Source "ChessBase"]
[SourceQuality "1"]
[TimeControl "180+2"]

1. e4 {[%emt 0:00:00]} d6 {[%emt 0:00:00]} 2. d4 {[%emt 0:00:00]} e5 {[%emt 0:
00:00]} 3. c3 {[%emt 0:00:05]} Nf6 4. Bd3 Be7 {[%emt 0:00:01]} 5. Ne2 {[%emt 0:
00:02]} O-O {[%emt 0:00:03]} 6. O-O {[%emt 0:00:01]} Nbd7 {[%emt 0:00:09]} 7.
h3 c6 8. Be3 {[%emt 0:00:03]} Qc7 {[%emt 0:00:02]} 9. Nd2 {[%emt 0:00:01]} Re8
{[%emt 0:00:01]} 10. f4 {[%emt 0:00:05]} exf4 {[%emt 0:00:13]} 11. Bxf4 {
[%emt 0:00:02]} Bf8 {[%emt 0:00:01]} 12. Ng3 {[%emt 0:00:09]} Qb6 {[%emt 0:00:
04]} 13. Qc2 {[%emt 0:00:07]} Ne5 {[%emt 0:00:15]} 14. Be2 {[%emt 0:00:22]} Ng6
{[%emt 0:00:02]} 15. Bg5 {[%emt 0:00:08]} Be7 {[%emt 0:00:05]} 16. Be3 {
[%emt 0:00:15]} Qc7 {[%emt 0:00:06]} 17. Kh1 {[%emt 0:00:01]} h6 {[%emt 0:00:
23]} 18. Rf2 {[%emt 0:00:04]} Be6 {[%emt 0:00:05]} 19. Raf1 {[%emt 0:00:02]}
Rf8 {[%emt 0:00:09]} 20. b3 {[%emt 0:00:02]} Nh7 {[%emt 0:00:03]} 21. Nf5 {
[%emt 0:00:14]} Bg5 {[%emt 0:00:06]} 22. Qd3 {[%emt 0:00:12]} Qd8 {[%emt 0:00:
09]} 23. Bh5 {[%emt 0:00:06]} Bxf5 {[%emt 0:00:16]} 24. Rxf5 {[%emt 0:00:06]}
Qe7 {[%emt 0:00:10]} 25. Bxg5 {[%emt 0:00:54]} Nxg5 {[%emt 0:00:02]} 26. Qc4 {
[%emt 0:00:02]} Kh7 {[%emt 0:00:31]} 27. Qd3 {[%emt 0:00:04]} Kg8 {[%emt 0:00:
04]} 28. a4 {[%emt 0:00:08]} Nh4 {[%emt 0:00:19]} 29. R5f4 {[%emt 0:00:08]} Ng6
{[%emt 0:00:01]} 30. R4f2 {[%emt 0:00:02]} Ne6 {[%emt 0:00:14]} 31. Qg3 {
[%emt 0:00:05]} Qg5 {[%emt 0:00:06]} 32. Qxg5 {[%emt 0:00:09]} Nxg5 {[%emt 0:
00:09]} 33. Bxg6 {[%emt 0:00:15]} fxg6 {[%emt 0:00:01]} 34. h4 {[%emt 0:00:02]}
Ne6 {[%emt 0:00:01]} 35. g3 {[%emt 0:00:00]} Rxf2 {[%emt 0:00:01]} 36. Rxf2 {
[%emt 0:00:01]} Rf8 {[%emt 0:00:02]} 37. Re2 {[%emt 0:00:02]} g5 {[%emt 0:00:
01]} 38. hxg5 {[%emt 0:00:02]} Nxg5 {[%emt 0:00:02]} 39. Kg2 {[%emt 0:00:00]}
Re8 {[%emt 0:00:01]} 40. b4 {[%emt 0:00:05]} Kf7 {[%emt 0:00:01]} 41. a5 {
[%emt 0:00:01]} a6 {[%emt 0:00:01]} 42. Nc4 {[%emt 0:00:02]} Ke6 {[%emt 0:00:
01]} 43. Nd2 {[%emt 0:00:05]} Nf7 {[%emt 0:00:11]} 44. Nf3 {[%emt 0:00:02]} Kd7
{[%emt 0:00:01]} 45. Kh3 {[%emt 0:00:02]} Ne5 {[%emt 0:00:02]} 1-0

[Event "GER-ch Blitz 2019"]
[Site "Magdeburg"]
[Date "2019.05.25"]
[Round "27.11"]
[White "Braeuning, Rudolf Wilhelm"]
[Black "Kopylov, Michael"]
[Result "0-1"]
[ECO "B01"]
[WhiteElo "2285"]
[BlackElo "2413"]
[Annotator "NA"]
[PlyCount "130"]
[EventDate "2019.05.25"]
[EventType "tourn"]
[EventCountry "GER"]
[Tiebreak "Number of wins+Number of black wins"]
[SourceTitle "playchess.com"]
[Source "ChessBase"]
[SourceQuality "1"]
[TimeControl "180+2"]

1. e4 {[%emt 0:00:00]} d5 {[%emt 0:00:00]} 2. exd5 {[%emt 0:00:01]} Qxd5 {
[%emt 0:00:00]} 3. Nc3 {[%emt 0:00:01]} Qd6 {[%emt 0:00:00]} 4. d4 {[%emt 0:00:
03]} Nf6 {[%emt 0:00:01]} 5. Bg5 {[%emt 0:00:02]} Bg4 {[%emt 0:00:09]} 6. Be2 {
[%emt 0:00:06]} Bxe2 {[%emt 0:00:03]} 7. Qxe2 {[%emt 0:00:10]} Nc6 {[%emt 0:00:
13]} 8. Nf3 {[%emt 0:00:06]} O-O-O {[%emt 0:00:13]} 9. O-O-O {[%emt 0:00:15]}
e6 {[%emt 0:00:02]} 10. Rhe1 {[%emt 0:00:56]} Be7 {[%emt 0:00:04]} 11. Kb1 {
[%emt 0:00:08]} Nd5 {[%emt 0:00:25]} 12. Bxe7 {[%emt 0:00:15]} Nxc3+ {[%emt 0:
00:13]} 13. bxc3 {[%emt 0:00:01]} Nxe7 {[%emt 0:00:09]} 14. Ka1 {[%emt 0:00:19]
} Nd5 {[%emt 0:00:05]} 15. Qc4 {[%emt 0:00:07]} f6 {[%emt 0:00:13]} 16. Qb3 {
[%emt 0:00:11]} Qc6 {[%emt 0:00:12]} 17. c4 {[%emt 0:00:07]} Nb6 {[%emt 0:00:
12]} 18. c5 {[%emt 0:00:04]} Nd5 {[%emt 0:00:09]} 19. g3 {[%emt 0:00:08]} a5 {
[%emt 0:00:23]} 20. Rb1 {[%emt 0:00:03]} a4 {[%emt 0:00:07]} 21. Qb5 {[%emt 0:
00:05]} Nc3 {[%emt 0:00:18]} 22. Qxc6 {[%emt 0:00:03]} bxc6 {[%emt 0:00:00]}
23. Rb4 {[%emt 0:00:02]} Kd7 {[%emt 0:00:03]} 24. Kb2 {[%emt 0:00:15]} Nd5 {
[%emt 0:00:01]} 25. Rxa4 {[%emt 0:00:02]} Rb8+ {[%emt 0:00:01]} 26. Kc1 {
[%emt 0:00:03]} Rb7 {[%emt 0:00:05]} 27. Ra3 {[%emt 0:00:04]} Nb4 {[%emt 0:00:
05]} 28. Ra4 {[%emt 0:00:07]} Rhb8 {[%emt 0:00:02]} 29. Ra3 {[%emt 0:00:05]} g5
{[%emt 0:00:13]} 30. h3 {[%emt 0:00:01]} h5 {[%emt 0:00:00]} 31. g4 {[%emt 0:
00:01]} h4 {[%emt 0:00:04]} 32. Kd2 {[%emt 0:00:02]} Nd5 {[%emt 0:00:02]} 33.
Rb3 {[%emt 0:00:02]} Rb5 {[%emt 0:00:02]} 34. Reb1 {[%emt 0:00:06]} Nf4 {
[%emt 0:00:03]} 35. Ng1 {[%emt 0:00:02]} Rxb3 {[%emt 0:00:07]} 36. Rxb3 {
[%emt 0:00:01]} Ra8 {[%emt 0:00:00]} 37. a3 Ra4 38. c3 {[%emt 0:00:04]} e5 {
[%emt 0:00:03]} 39. Ke3 {[%emt 0:00:06]} Nd5+ {[%emt 0:00:01]} 40. Kd2 {
[%emt 0:00:01]} e4 {[%emt 0:00:01]} 41. Ne2 {[%emt 0:00:02]} Ke6 {[%emt 0:00:
02]} 42. Rb8 {[%emt 0:00:03]} Rxa3 {[%emt 0:00:01]} 43. Re8+ {[%emt 0:00:01]}
Kd7 {[%emt 0:00:01]} 44. Rh8 {[%emt 0:00:02]} Ra2+ {[%emt 0:00:00]} 45. Kd1 {
[%emt 0:00:01]} Nf4 {[%emt 0:00:03]} 46. Nxf4 {[%emt 0:00:02]} gxf4 {[%emt 0:
00:00]} 47. Rh7+ {[%emt 0:00:01]} Ke6 {[%emt 0:00:01]} 48. Rxc7 {[%emt 0:00:01]
} Kd5 {[%emt 0:00:01]} 49. Rd7+ {[%emt 0:00:01]} Kc4 {[%emt 0:00:00]} 50. Rd6 {
[%emt 0:00:01]} Kd3 {[%emt 0:00:01]} 51. Kc1 {[%emt 0:00:01]} e3 {[%emt 0:00:
01]} 52. fxe3 {[%emt 0:00:01]} fxe3 {[%emt 0:00:00]} 53. Kb1 {[%emt 0:00:05]}
Rh2 {[%emt 0:00:03]} 54. d5 {[%emt 0:00:01]} Rh1+ {[%emt 0:00:11]} 55. Kb2 {
[%emt 0:00:01]} cxd5 {[%emt 0:00:02]} 56. Rxd5+ {[%emt 0:00:01]} Ke4 {[%emt 0:
00:03]} 57. Rd8 {[%emt 0:00:04]} e2 {[%emt 0:00:01]} 58. c6 {[%emt 0:00:02]}
e1=Q {[%emt 0:00:14]} 59. Re8+ {[%emt 0:00:01]} Kd3 {[%emt 0:00:00]} 60. Rxe1 {
[%emt 0:00:01]} Rxe1 {[%emt 0:00:01]} 61. c7 {[%emt 0:00:01]} Re8 {[%emt 0:00:
01]} 62. Kb3 {[%emt 0:00:00]} Rc8 {[%emt 0:00:00]} 63. Kb4 Rxc7 64. c4 {
[%emt 0:00:02]} Rxc4+ {[%emt 0:00:01]} 65. Kb5 {[%emt 0:00:01]} Rf4 {[%emt 0:
00:02]} 0-1

[Event "GER-ch Blitz 2019"]
[Site "Magdeburg"]
[Date "2019.05.25"]
[Round "27.12"]
[White "Ehmann, Thilo"]
[Black "Voege, Tobias"]
[Result "1-0"]
[ECO "B39"]
[WhiteElo "2291"]
[BlackElo "2294"]
[Annotator "NA"]
[PlyCount "73"]
[EventDate "2019.05.25"]
[EventType "tourn"]
[EventCountry "GER"]
[Tiebreak "Number of wins+Number of black wins"]
[SourceTitle "playchess.com"]
[Source "ChessBase"]
[SourceQuality "1"]
[TimeControl "180+2"]

1. e4 {[%emt 0:00:00]} c5 {[%emt 0:00:00]} 2. Nf3 {[%emt 0:00:00]} Nc6 {
[%emt 0:00:00]} 3. d4 {[%emt 0:00:02]} cxd4 {[%emt 0:00:00]} 4. Nxd4 {[%emt 0:
00:00]} g6 {[%emt 0:00:00]} 5. c4 {[%emt 0:00:05]} Bg7 {[%emt 0:00:02]} 6. Be3
{[%emt 0:00:00]} Nf6 {[%emt 0:00:00]} 7. Nc3 {[%emt 0:00:01]} Ng4 {[%emt 0:00:
01]} 8. Qxg4 {[%emt 0:00:04]} Nxd4 {[%emt 0:00:02]} 9. Qd1 {[%emt 0:00:01]} e5
{[%emt 0:00:01]} 10. Be2 {[%emt 0:00:10]} O-O {[%emt 0:00:02]} 11. O-O {
[%emt 0:00:01]} a6 {[%emt 0:00:03]} 12. Qd2 {[%emt 0:00:10]} d6 {[%emt 0:00:02]
} 13. Bxd4 {[%emt 0:00:23]} exd4 {[%emt 0:00:02]} 14. Nd5 {[%emt 0:00:02]} Be6
{[%emt 0:00:07]} 15. Bd3 {[%emt 0:00:08]} Bxd5 {[%emt 0:00:25]} 16. cxd5 {
[%emt 0:00:09]} Qb6 {[%emt 0:00:03]} 17. Rac1 {[%emt 0:00:17]} Rac8 {[%emt 0:
00:02]} 18. h4 {[%emt 0:00:02]} h5 {[%emt 0:00:25]} 19. Rxc8 {[%emt 0:00:26]}
Rxc8 {[%emt 0:00:02]} 20. Rc1 {[%emt 0:00:01]} Qd8 {[%emt 0:00:10]} 21. Rxc8 {
[%emt 0:00:07]} Qxc8 {[%emt 0:00:01]} 22. g3 {[%emt 0:00:12]} Qc5 {[%emt 0:00:
16]} 23. Kg2 {[%emt 0:00:11]} Be5 {[%emt 0:00:09]} 24. Qc2 {[%emt 0:00:09]} a5
{[%emt 0:00:18]} 25. Qxc5 {[%emt 0:00:09]} dxc5 {[%emt 0:00:01]} 26. f4 {
[%emt 0:00:01]} Bc7 {[%emt 0:00:14]} 27. e5 {[%emt 0:00:01]} Kg7 {[%emt 0:00:
08]} 28. Kf3 {[%emt 0:00:04]} f6 {[%emt 0:00:25]} 29. d6 {[%emt 0:00:10]} Bb8 {
[%emt 0:00:15]} 30. Ke4 {[%emt 0:00:01]} g5 {[%emt 0:00:09]} 31. Kd5 {[%emt 0:
00:05]} gxf4 {[%emt 0:00:04]} 32. gxf4 {[%emt 0:00:01]} fxe5 {[%emt 0:00:04]}
33. fxe5 {[%emt 0:00:00]} Ba7 {[%emt 0:00:07]} 34. e6 {[%emt 0:00:09]} c4 {
[%emt 0:00:14]} 35. Kxc4 {[%emt 0:00:05]} Kf6 {[%emt 0:00:07]} 36. e7 {[%emt 0:
00:01]} Kf7 {[%emt 0:00:01]} 37. Bg6+ {[%emt 0:00:01]} 1-0

[Event "GER-ch Blitz 2019"]
[Site "Magdeburg"]
[Date "2019.05.25"]
[Round "27.13"]
[White "Feuerstack, Aljoscha"]
[Black "Braeuer, Franz"]
[Result "1-0"]
[ECO "B22"]
[WhiteElo "2441"]
[BlackElo "2445"]
[Annotator "NA"]
[PlyCount "57"]
[EventDate "2019.05.25"]
[EventType "tourn"]
[EventCountry "GER"]
[Tiebreak "Number of wins+Number of black wins"]
[SourceTitle "playchess.com"]
[Source "ChessBase"]
[SourceQuality "1"]
[TimeControl "180+2"]

1. e4 {[%emt 0:00:00]} c5 {[%emt 0:00:00]} 2. c3 {[%emt 0:00:00]} Nf6 {[%emt 0:
00:00]} 3. e5 {[%emt 0:00:01]} Nd5 {[%emt 0:00:00]} 4. Nf3 {[%emt 0:00:01]} Nc6
{[%emt 0:00:02]} 5. Bc4 {[%emt 0:00:02]} Nb6 {[%emt 0:00:00]} 6. Bb3 {[%emt 0:
00:00]} d6 {[%emt 0:00:01]} 7. exd6 {[%emt 0:00:02]} Qxd6 {[%emt 0:00:01]} 8.
O-O {[%emt 0:00:01]} Be6 {[%emt 0:00:05]} 9. Bxe6 {[%emt 0:00:02]} Qxe6 {
[%emt 0:00:01]} 10. a4 {[%emt 0:00:01]} Qd6 {[%emt 0:00:17]} 11. a5 {[%emt 0:
00:08]} Nd5 {[%emt 0:00:01]} 12. a6 {[%emt 0:00:02]} b6 {[%emt 0:00:02]} 13. d4
{[%emt 0:00:14]} cxd4 {[%emt 0:00:01]} 14. Nxd4 {[%emt 0:00:02]} Nxd4 {[%emt 0:
00:23]} 15. Qxd4 {[%emt 0:00:01]} Rd8 {[%emt 0:00:11]} 16. Na3 {[%emt 0:00:35]}
e6 {[%emt 0:00:06]} 17. Nb5 {[%emt 0:00:15]} Qd7 {[%emt 0:00:01]} 18. Qa4 {
[%emt 0:00:02]} Bc5 {[%emt 0:00:49]} 19. Rd1 {[%emt 0:00:28]} O-O {[%emt 0:01:
12]} 20. c4 {[%emt 0:00:08]} Qe7 {[%emt 0:00:13]} 21. cxd5 {[%emt 0:00:02]}
exd5 {[%emt 0:00:00]} 22. Nd4 {[%emt 0:00:12]} Rfe8 {[%emt 0:00:09]} 23. Be3 {
[%emt 0:00:02]} Qe4 {[%emt 0:00:03]} 24. h3 {[%emt 0:00:05]} Rc8 {[%emt 0:00:
02]} 25. Rac1 {[%emt 0:00:05]} f5 {[%emt 0:00:02]} 26. Qc2 {[%emt 0:00:42]} Qe5
{[%emt 0:00:06]} 27. Qd2 {[%emt 0:00:14]} Rcd8 {[%emt 0:00:02]} 28. Bf4 {
[%emt 0:00:05]} Qe7 {[%emt 0:00:03]} 29. Nc6 {[%emt 0:00:01]} 1-0